bitfinex-derivatives/quotes_BNBF0:USTF0_20250413
["timestamp","ask_amount","ask_price","bid_price","bid_amount"]
[1744584612459,0.58592372,582.71,582.19,0.31548871]
[1744584612661,0.58592372,582.7,582.19,0.31548871]
[1744584612960,0.58598677,582.69,582.18,1.174]
[1744584613160,0.58598677,582.68,582.18,1.174]
[1744584613355,0.58598677,582.67,582.18,1.174]
[1744584613555,0.58598677,582.66,582.18,1.174]
[1744584613757,0.58598677,582.65,582.18,1.174]
[1744584613960,0.216,582.72,582.18,1.174]
[1744584614158,0.58568533,582.71,582.18,1.174]
[1744584614358,0.216,582.72,582.18,1.174]
[1744584614359,0.58568533,582.7,582.18,1.174]
[1744584614555,0.58568533,582.69,582.18,1.174]
[1744584614757,0.58568533,582.68,582.18,1.174]
[1744584614961,0.58568533,582.67,582.18,1.174]
[1744584615162,0.58568533,582.66,582.18,1.174]
[1744584615461,0.216,582.72,582.18,1.174]
[1744584615662,0.58540686,582.71,582.18,1.174]
[1744584615862,0.216,582.72,582.18,1.174]
[1744584615863,0.58540686,582.7,582.18,1.174]
[1744584616061,0.58540686,582.69,582.18,1.174]
[1744584616357,0.58540686,582.68,582.18,1.174]
[1744584616561,0.216,582.72,582.18,1.174]
[1744584616756,0.58529218,582.71,582.18,1.174]
[1744584616961,0.58529218,582.7,582.18,1.174]
[1744584617155,0.58529218,582.69,582.18,1.726]
[1744584617357,0.58529218,582.68,582.18,1.726]
[1744584617555,0.216,582.72,582.18,1.726]
[1744584617759,0.5851856,582.71,582.18,1.726]
[1744584617961,0.5851856,582.7,582.18,1.726]
[1744584618162,0.5851856,582.69,582.18,1.726]
[1744584618354,0.216,582.72,582.18,1.726]
[1744584618558,0.58529529,582.71,582.18,1.726]
[1744584618759,0.58529529,582.7,582.18,1.726]
[1744584618958,0.216,582.72,582.18,1.726]
[1744584619158,0.58551578,582.71,582.18,1.726]
[1744584619361,0.58551578,582.7,582.18,1.726]
[1744584619659,0.216,582.72,582.18,1.726]
[1744584619855,0.58523754,582.71,582.18,1.726]
[1744584620059,0.216,582.72,582.18,1.726]
[1744584620257,0.58517245,582.71,582.18,1.726]
[1744584620462,0.58506493,582.7,582.18,1.726]
[1744584620657,0.216,582.72,582.18,1.726]
[1744584620859,0.58500304,582.71,582.18,1.726]
[1744584621064,0.58500304,582.7,582.18,1.726]
[1744584621260,0.216,582.72,582.18,1.726]
[1744584621457,0.58494149,582.71,582.18,1.726]
[1744584621661,0.216,582.72,582.18,1.726]
[1744584621861,0.58494782,582.71,582.18,1.726]
[1744584622058,0.216,582.72,582.18,1.726]
[1744584622363,0.216,582.72,582.19,0.34353046]
[1744584622762,0.216,582.72,582.2,0.3153753]
[1744584622958,0.216,582.72,582.2,0.65889986]
[1744584623161,0.216,582.72,582.21,0.65889396]
[1744584623364,0.216,582.72,582.22,0.3153753]
[1744584623562,0.216,582.72,582.21,0.34351866]
[1744584623759,0.216,582.72,582.22,0.31537447]
[1744584623960,0.216,582.72,582.22,0.65888723]
[1744584624265,0.216,582.72,582.23,0.65888133]
[1744584624566,0.216,582.72,582.24,0.65887543]
[1744584624867,0.216,582.72,582.25,0.65886953]
[1744584625166,0.216,582.72,582.26,0.65886363]
[1744584625364,0.216,582.72,582.27,0.65885773]
[1744584625560,0.216,582.72,582.28,0.65885183]
[1744584625761,0.216,582.72,582.29,0.31537447]
[1744584626366,0.216,582.72,582.29,0.98537447]
[1744584626567,0.216,582.72,582.3,0.31537447]
[1744584627064,0.216,582.72,582.29,0.67]
[1744584627367,0.34291788,583.23,582.3,0.31536133]
[1744584627569,0.89750965,583.22,582.3,0.31536133]
[1744584627868,0.89750965,583.21,582.3,0.31536133]
[1744584628068,0.89750965,583.2,582.3,0.31536133]
[1744584628269,0.58475473,583.19,582.3,0.31536133]
[1744584628464,0.58475473,583.18,582.3,0.31536133]
[1744584628665,0.58475473,583.17,582.3,0.76536133]
[1744584628871,0.58475473,583.16,582.3,0.45]
[1744584629072,0.58475473,583.15,582.31,0.31536114]
[1744584629272,0.58475473,583.14,582.31,0.31536114]
[1744584629474,0.58475473,583.13,582.31,0.31536114]
[1744584629673,0.58475473,583.12,582.31,0.31536114]
[1744584629874,0.58475473,583.11,582.31,0.31536114]
[1744584630075,0.58475473,583.1,582.31,0.31536114]
[1744584630275,0.58475473,583.09,582.31,0.31536114]
[1744584630468,0.58475473,583.08,582.31,0.93036114]
[1744584630770,0.216,583.13,582.32,0.31536114]
[1744584630771,0.58475473,583.07,582.32,0.31536114]
[1744584630975,0.58475473,583.06,582.32,0.31536114]
[1744584631174,0.58475473,583.05,582.32,0.31536114]
[1744584631373,0.58475473,583.04,582.32,0.31536114]
[1744584631572,0.58475473,583.03,582.32,0.31536114]
[1744584631774,0.58475473,583.02,582.32,0.31536114]
[1744584631970,0.58475473,583.01,582.32,0.31536114]
[1744584632175,0.58475473,583.0,582.32,0.31536114]
[1744584632376,0.58475473,582.99,582.33,0.31535041]
[1744584632577,0.58475473,582.98,582.34,0.31535041]
[1744584632770,0.58475473,582.97,582.32,0.31535041]
[1744584632974,0.58475473,582.96,582.33,0.31535041]
[1744584633271,0.58475473,582.95,582.34,0.31535041]
[1744584633475,0.58475473,582.94,582.32,0.31535041]
[1744584633678,0.58475473,582.93,582.33,0.31535041]
[1744584633877,0.58475473,582.92,582.33,0.491]
[1744584634178,0.58475473,582.91,582.34,0.3153477]
[1744584634378,0.58475473,582.9,582.34,0.3153477]
[1744584634577,0.58475473,582.89,582.34,0.3153477]
[1744584634777,0.58475473,582.88,582.34,0.3153477]
[1744584634977,0.58475473,582.87,582.34,0.3153477]
[1744584635172,0.58475473,582.86,582.34,0.3153477]
[1744584635370,0.58475473,582.85,582.34,0.3153477]
[1744584635570,0.58475473,582.84,582.34,0.3153477]
[1744584635774,0.58475473,582.83,582.34,0.3153477]
[1744584635970,0.58475473,582.82,582.34,0.3153477]
[1744584636179,0.216,583.13,582.34,0.3153477]
[1744584636376,0.58498791,583.12,582.34,0.3153477]
[1744584636578,0.58498791,583.11,582.34,0.3153477]
[1744584636778,0.58498791,583.1,582.34,0.3153477]
[1744584636978,0.58498791,583.09,582.34,0.3153477]
[1744584637176,0.58498791,583.08,582.34,0.65878967]
[1744584637474,0.58498791,583.07,582.35,0.3153477]
[1744584637674,0.58498791,583.06,582.35,0.3153477]
[1744584637876,0.58498791,583.05,582.35,0.3153477]
[1744584638074,0.58498791,583.04,582.35,0.3153477]
[1744584638372,0.58498791,583.03,582.35,0.3153477]
[1744584638673,0.58498791,583.02,582.36,0.31532073]
[1744584638878,0.58498791,583.01,582.35,0.31532073]
[1744584639178,0.58498791,583.0,582.36,0.31532073]
[1744584639380,0.58498791,582.99,582.35,0.31532073]
[1744584639578,0.58498791,582.98,582.36,0.31532073]
[1744584639772,0.216,583.13,582.35,0.31532073]
[1744584639773,0.58498791,582.97,582.35,0.31532073]
[1744584639978,0.58498791,582.96,582.35,0.31532073]
[1744584640174,0.58498791,582.95,582.35,0.31532073]
[1744584640376,0.58498791,582.94,582.35,0.31532073]
[1744584640577,0.58498791,582.93,582.35,0.31532073]
[1744584640780,0.58498791,582.92,582.35,0.31532073]
[1744584640979,0.58498791,582.91,582.35,0.31532073]
[1744584641182,0.58498791,582.9,582.35,0.31532073]
[1744584641381,0.58498791,582.89,582.35,0.31532073]
[1744584641575,0.58498791,582.88,582.35,0.31532073]
[1744584641778,0.58498791,582.87,582.35,0.31532073]
[1744584641975,0.216,583.13,582.35,0.31532073]
[1744584642186,0.58431245,583.12,582.35,0.31532073]
[1744584642387,0.58431245,583.11,582.35,0.31532073]
[1744584642584,0.58431245,583.1,582.35,0.31532073]
[1744584642787,0.216,583.13,582.35,0.31532073]
[1744584643086,0.58425287,583.12,582.35,0.31532073]
[1744584643287,0.58425287,583.11,582.35,0.31532073]
[1744584643482,0.58425287,583.1,582.35,0.31532073]
[1744584643681,0.58425287,583.09,582.35,0.31532073]
[1744584643888,0.58425287,583.08,582.36,0.456]
[1744584644190,0.58425287,583.07,582.37,0.31532073]
[1744584644491,0.58425287,583.06,582.37,0.31532073]
[1744584644688,0.58425287,583.05,582.37,0.31532073]
[1744584644889,0.58425287,583.04,582.37,0.31532073]
[1744584645190,0.58425287,583.03,582.38,0.617]
[1744584645390,0.58425287,583.02,582.39,0.31532073]
[1744584645586,0.216,583.13,582.39,0.31532073]
[1744584645587,0.58425287,583.01,582.39,0.31532073]
[1744584645787,0.58425287,583.0,582.39,0.31532073]
[1744584645991,0.58425287,582.99,582.39,0.31532073]
[1744584646290,0.58425287,582.98,582.4,0.514]
[1744584646488,0.58425287,582.97,582.41,0.31532073]
[1744584646685,0.58425287,582.96,582.41,0.31532073]
[1744584646987,0.58425287,582.95,582.41,0.31532073]
[1744584647186,0.58425287,582.94,582.41,0.31532073]
[1744584647386,0.58425287,582.93,582.41,0.31532073]
[1744584647589,0.58425287,582.92,582.41,0.31532073]
[1744584647790,0.216,583.13,582.41,0.31532073]
[1744584647991,0.58489645,583.12,582.41,0.31532073]
[1744584648187,0.58494477,583.11,582.41,0.31532073]
[1744584648391,0.58494477,583.1,582.41,0.31532073]
[1744584648594,0.58494477,583.09,582.41,0.31532073]
[1744584648788,0.58494477,583.08,582.41,0.31532073]
[1744584648992,0.58494477,583.07,582.41,0.31532073]
[1744584649193,0.58494477,583.06,582.41,0.31532073]
[1744584649394,0.58494477,583.05,582.41,0.31532073]
[1744584649596,0.58494477,583.04,582.4,0.514]
[1744584649795,0.58494477,583.03,582.41,0.31529359]
[1744584649997,0.5849553,583.02,582.41,0.31529359]
[1744584650295,0.5849553,583.01,582.41,0.31529359]
[1744584650492,0.5849553,583.0,582.41,0.31529359]
[1744584650689,0.5849553,582.99,582.41,0.31529359]
[1744584650903,0.5849553,582.98,582.41,0.31529359]
[1744584651092,0.5849553,582.97,582.41,0.31529359]
[1744584651293,0.5849553,582.96,582.42,0.31529357]
[1744584651493,0.5849553,582.95,582.41,0.31529357]
[1744584651796,0.216,583.13,582.42,0.31529357]
[1744584651995,0.58500297,583.12,582.41,0.31529357]
[1744584652192,0.58500297,583.11,582.42,0.31529357]
[1744584652395,0.58500297,583.1,582.43,0.31529357]
[1744584652591,0.58500297,583.09,582.41,0.31529357]
[1744584652894,0.58500297,583.08,582.41,0.31529357]
[1744584653094,0.58500297,583.07,582.41,0.31529357]
[1744584653292,0.58500297,583.06,582.41,0.31529357]
[1744584653493,0.58500297,583.05,582.41,0.31529357]
[1744584653692,0.58500297,583.04,582.41,0.31529357]
[1744584653894,0.58500297,583.03,582.41,0.31529357]
[1744584654095,0.58500297,583.02,582.41,0.31529357]
[1744584654295,0.58500297,583.01,582.41,0.31529357]
[1744584654496,0.58500297,583.0,582.41,0.31529357]
[1744584654692,0.58500297,582.99,582.41,0.31529357]
[1744584654898,0.58500297,582.98,582.41,0.31529357]
[1744584655097,0.58500297,582.97,582.41,0.31529357]
[1744584655292,0.58500297,582.96,582.41,0.31529357]
[1744584655496,0.58500297,582.95,582.41,0.31529357]
[1744584655694,0.58500297,582.94,582.41,0.31529357]
[1744584655893,1.30011221,583.79,582.41,0.31529357]
[1744584656094,0.34267699,583.64,582.41,0.31529357]
[1744584656296,0.89855983,583.63,582.41,0.31529357]
[1744584656497,0.89855983,583.62,582.41,0.31529357]
[1744584656695,1.24125443,583.61,582.41,0.31529357]
[1744584656897,1.2412603,583.6,582.41,0.31529357]
[1744584657094,1.24126618,583.59,582.41,0.31529357]
[1744584657295,1.24127205,583.58,582.41,0.31529357]
[1744584657602,1.24128037,583.57,582.42,0.31529492]
[1744584657801,1.24128625,583.56,582.41,0.31529492]
[1744584658001,1.24128625,583.56,582.4,0.81254203]
[1744584658002,0.89856228,583.55,582.42,0.31529492]
[1744584658300,0.89856228,583.54,582.43,0.31529492]
[1744584658500,0.89856228,583.53,582.42,0.31529492]
[1744584658701,0.89856228,583.52,582.42,0.31529492]
[1744584659002,0.58527596,583.51,582.41,0.606]
[1744584659197,0.89856283,583.5,582.42,0.31529475]
[1744584659396,0.89856283,583.49,582.42,0.31529475]
[1744584659600,0.89856283,583.48,582.42,0.31529475]
[1744584659797,0.89856283,583.47,582.42,0.31529475]
[1744584659999,0.89856283,583.46,582.42,0.31529475]
[1744584660196,0.89856283,583.45,582.42,0.31529475]
[1744584660396,0.89856283,583.44,582.42,0.31529475]
[1744584660699,0.89856283,583.43,582.42,0.86329475]
[1744584660896,0.89856283,583.42,582.43,0.31529475]
[1744584661098,0.89856283,583.41,582.43,0.31529475]
[1744584661396,0.89856283,583.4,582.43,0.31529475]
[1744584661599,0.89856283,583.39,582.43,0.31529475]
[1744584661804,0.89856283,583.38,582.43,0.31529475]
[1744584661998,0.89856283,583.37,582.43,0.31529475]
[1744584662199,0.89856283,583.36,582.43,0.31529475]
[1744584662396,0.89856283,583.35,582.43,0.31529475]
[1744584662601,0.89856283,583.34,582.43,0.31529475]
[1744584662801,0.89856283,583.33,582.43,0.31529475]
[1744584663000,0.89856283,583.32,582.43,0.31529475]
[1744584663200,0.89856283,583.31,582.43,0.31529475]
[1744584663398,0.89856283,583.3,582.43,0.31529475]
[1744584663597,0.89877949,583.29,582.43,0.31529475]
[1744584663903,0.89877949,583.28,582.43,0.31529475]
[1744584664201,0.89877949,583.27,582.43,0.31529475]
[1744584664396,0.58549262,583.26,582.43,0.31529475]
[1744584664600,0.58549262,583.25,582.43,0.31529475]
[1744584664798,0.58549262,583.24,582.43,0.31529475]
[1744584665001,0.58549262,583.23,582.43,0.31529475]
[1744584665202,0.58549262,583.22,582.43,0.31529475]
[1744584665406,0.58549262,583.21,582.43,0.31529475]
[1744584665599,0.58549262,583.2,582.43,0.31529475]
[1744584665799,0.58549262,583.19,582.43,0.31529475]
[1744584666002,0.58549262,583.18,582.43,0.31529475]
[1744584666197,0.58549262,583.17,582.43,0.31529475]
[1744584666504,0.58549262,583.16,582.43,0.31529475]
[1744584666703,0.58549262,583.15,582.43,0.31529475]
[1744584666903,0.58549262,583.14,582.43,0.31529475]
[1744584667100,0.58549262,583.13,582.43,0.31529475]
[1744584667300,0.58549262,583.12,582.43,0.31529475]
[1744584667498,0.58549262,583.11,582.43,0.31529475]
[1744584667704,0.58549262,583.1,582.43,0.31529475]
[1744584668004,0.58549262,583.09,582.43,0.31529475]
[1744584668199,0.58549262,583.08,582.43,0.85129475]
[1744584668397,0.58549262,583.07,582.44,0.31529475]
[1744584668598,0.58549262,583.06,582.44,0.31529475]
[1744584668803,0.58549262,583.05,582.45,0.5]
[1744584669003,0.58549262,583.04,582.46,0.31529475]
[1744584669203,0.58549262,583.03,582.46,0.31529475]
[1744584669402,0.58549262,583.02,582.45,0.5]
[1744584669606,0.58549262,583.01,582.46,0.31530293]
[1744584669805,0.58549262,583.0,582.46,0.31530293]
[1744584670004,0.58549262,582.99,582.46,0.31530293]
[1744584670201,0.58549262,582.98,582.46,0.31530293]
[1744584670404,0.58549262,582.97,582.46,0.31530293]
[1744584670600,0.58549262,582.96,582.46,0.31530293]
[1744584670802,0.58549262,582.95,582.46,0.31530293]
[1744584671006,0.58549262,582.94,582.46,0.31530293]
[1744584671306,0.58549262,582.93,582.46,0.31530293]
[1744584671602,0.58549262,582.92,582.46,0.31530293]
[1744584671802,0.58549262,582.91,582.46,0.31530293]
[1744584672006,0.58549262,582.9,582.46,0.31530293]
[1744584672210,0.58549262,582.89,582.46,0.31530293]
[1744584672403,0.58549262,582.88,582.46,0.31530293]
[1744584672608,0.58549262,582.87,582.46,0.31530293]
[1744584672809,0.58549262,582.86,582.46,0.31530293]
[1744584673011,0.58549262,582.85,582.47,0.527]
[1744584673211,0.58549262,582.84,582.48,0.31530293]
[1744584673412,0.34272397,583.56,582.48,0.31530293]
[1744584673611,0.90035719,583.55,582.48,0.31530293]
[1744584673812,0.90035719,583.54,582.48,0.31530293]
[1744584674113,0.90035689,583.53,582.49,0.31530266]
[1744584674412,0.90035689,583.52,582.5,0.31530266]
[1744584674613,0.90035689,583.51,582.48,0.31530266]
[1744584674813,0.90035689,583.5,582.48,0.31530266]
[1744584675113,0.90035689,583.49,582.48,0.31530266]
[1744584675310,0.90035689,583.48,582.48,0.31530266]
[1744584675613,0.90035689,583.47,582.48,0.31530266]
[1744584675813,0.90035689,583.46,582.48,0.31530266]
[1744584676009,0.90035689,583.45,582.48,0.31530266]
[1744584676211,0.34272397,583.56,582.48,0.31530266]
[1744584676212,0.90035689,583.44,582.48,0.31530266]
[1744584676411,0.90035689,583.43,582.48,0.31530266]
[1744584676609,0.90035689,583.42,582.48,0.31530266]
[1744584676912,0.90035689,583.41,582.48,0.31530266]
[1744584677109,0.90035689,583.4,582.48,0.31530266]
[1744584677408,0.90035689,583.39,582.48,0.31530266]
[1744584677712,0.90035689,583.38,582.48,0.31530266]
[1744584677912,0.90035689,583.37,582.48,0.31530266]
[1744584678210,0.90035689,583.36,582.48,0.31530266]
[1744584678414,0.90035689,583.35,582.48,0.31530266]
[1744584678611,0.58685265,583.34,582.47,0.527]
[1744584678817,0.90038389,583.33,582.49,0.62]
[1744584679111,0.58685265,583.32,582.5,0.31528454]
[1744584679315,0.58685265,583.31,582.5,0.31528454]
[1744584679516,0.58740522,583.3,582.5,0.31528454]
[1744584679711,0.58740522,583.29,582.5,0.31528454]
[1744584679916,0.58740522,583.28,582.5,0.31528454]
[1744584680116,0.58740522,583.27,582.5,0.31528454]
[1744584680317,0.58740522,583.26,582.5,0.31528454]
[1744584680517,0.58740522,583.25,582.5,0.31528454]
[1744584680717,0.58740522,583.24,582.5,0.31528454]
[1744584681017,0.58740522,583.23,582.5,0.31528454]
[1744584681218,0.58740522,583.22,582.5,0.31528454]
[1744584681411,0.58740522,583.21,582.5,0.31528454]
[1744584681614,0.58740522,583.2,582.5,0.31528454]
[1744584681813,0.58740522,583.19,582.5,0.31528454]
[1744584682017,0.58740522,583.18,582.5,0.31528454]
[1744584682217,0.58740522,583.17,582.5,0.31528454]
[1744584682419,0.58740522,583.16,582.5,0.31528454]
[1744584682717,0.58740522,583.15,582.51,0.34334174]
[1744584682914,0.58740522,583.14,582.52,0.31528454]
[1744584683114,0.58740458,583.13,582.52,0.31528454]
[1744584683317,0.58740458,583.12,582.51,0.34334174]
[1744584683517,0.58740458,583.11,582.52,0.31522354]
[1744584683817,0.58740458,583.1,582.52,0.31522354]
[1744584684018,0.58740458,583.09,582.52,0.95422354]
[1744584684215,0.58740458,583.08,582.53,0.31522354]
[1744584684419,0.58740458,583.07,582.53,0.31522354]
[1744584684618,0.58740458,583.06,582.53,0.31522354]
[1744584684914,0.58740458,583.05,582.53,0.31522354]
[1744584685118,0.58740458,583.04,582.53,0.65855349]
[1744584685315,0.58740458,583.03,582.54,0.31522354]
[1744584685620,0.216,583.45,582.54,0.6585476]
[1744584685822,0.58711023,583.44,582.55,0.31522354]
[1744584686022,0.58711023,583.43,582.55,0.31522354]
[1744584686223,0.58711023,583.42,582.55,0.31522354]
[1744584686418,0.58711023,583.41,582.55,0.31522354]
[1744584686625,0.58711023,583.4,582.55,0.31522354]
[1744584686820,0.58711023,583.39,582.55,0.31522354]
[1744584687019,0.58711023,583.38,582.55,0.31522354]
[1744584687219,0.58711023,583.37,582.55,0.31522354]
[1744584687419,0.58711023,583.36,582.55,0.31522354]
[1744584687618,0.58711023,583.35,582.55,0.31522354]
[1744584687820,0.58711023,583.34,582.55,0.31522354]
[1744584688119,0.58711023,583.33,582.56,0.31519433]
[1744584688323,0.58711023,583.32,582.55,0.31519433]
[1744584688523,0.58711023,583.31,582.56,0.97019433]
[1744584688724,0.58711023,583.3,582.57,0.31519433]
[1744584688924,0.58711023,583.29,582.57,0.31519433]
[1744584689118,0.58711023,583.28,582.57,0.31519433]
[1744584689422,0.58711023,583.27,582.57,0.31519433]
[1744584689622,0.58711023,583.26,582.58,0.31520095]
[1744584689822,0.58711023,583.25,582.57,0.31520095]
[1744584690020,0.216,583.45,582.58,0.31520095]
[1744584690322,0.58664291,583.44,582.59,0.31520095]
[1744584690520,0.58664291,583.43,582.57,0.31520095]
[1744584690723,0.58664291,583.42,582.58,0.31520095]
[1744584690923,0.58664291,583.41,582.57,0.31520095]
[1744584691224,0.58664291,583.4,582.58,0.633]
[1744584691426,0.58664291,583.39,582.59,0.31520095]
[1744584691624,0.58664291,583.38,582.59,0.31520095]
[1744584691926,0.58657404,583.37,582.59,0.31520095]
[1744584692120,0.58657404,583.36,582.59,0.31520095]
[1744584692327,0.58657404,583.35,582.59,0.31520095]
[1744584692527,0.58657404,583.34,582.59,0.31520095]
[1744584692826,0.58657404,583.33,582.59,0.31520095]
[1744584693026,0.58657404,583.32,582.6,0.631]
[1744584693226,0.58657404,583.31,582.61,0.31520095]
[1744584693422,0.58657404,583.3,582.61,0.31520095]
[1744584693727,0.58657404,583.29,582.61,0.31520095]
[1744584693922,0.58657404,583.28,582.61,0.31520095]
[1744584694124,0.58657404,583.27,582.61,0.31520095]
[1744584694329,0.58657404,583.26,582.61,0.31520095]
[1744584694528,0.58657404,583.25,582.61,0.31520095]
[1744584694728,0.58657404,583.24,582.61,0.31520095]
[1744584694929,0.58657404,583.23,582.61,0.31520095]
[1744584695130,0.58657404,583.22,582.61,0.31520095]
[1744584695429,0.58657404,583.21,582.61,0.31520095]
[1744584695631,0.58657404,583.2,582.61,0.31520095]
[1744584695829,0.58657404,583.19,582.62,0.419]
[1744584696024,0.58657404,583.18,582.63,0.31520095]
[1744584696228,0.58657404,583.17,582.63,0.31520095]
[1744584696425,0.58657404,583.16,582.63,0.31520095]
[1744584696629,0.58657404,583.15,582.63,0.31520095]
[1744584696830,0.58657404,583.14,582.63,0.31520095]
[1744584697130,0.58657404,583.13,582.63,0.31520095]
[1744584697330,0.58657404,583.12,582.63,0.31520095]
[1744584697524,0.58657404,583.11,582.63,0.31520095]
[1744584697825,0.58657404,583.1,582.63,0.31520095]
[1744584698031,0.58657404,583.09,582.63,0.31520095]
[1744584698226,0.58657404,583.08,582.63,0.31520095]
[1744584698433,0.58657404,583.07,582.63,0.31520095]
[1744584698630,0.216,583.23,582.63,0.31520095]
[1744584698831,0.58638391,583.22,582.63,0.31520095]
[1744584699031,0.58638391,583.21,582.63,0.31520095]
[1744584699232,0.58638391,583.2,582.63,0.31520095]
[1744584699531,0.58638391,583.19,582.63,0.31520095]
[1744584699731,0.58638391,583.18,582.63,0.31520095]
[1744584699931,0.58638391,583.17,582.63,0.31520095]
[1744584700132,0.58638391,583.16,582.63,0.31520095]
[1744584700330,0.58638391,583.15,582.63,0.31520095]
[1744584700532,0.58638391,583.14,582.63,0.31520095]
[1744584700727,0.58638391,583.13,582.63,0.31520095]
[1744584700926,0.58638391,583.12,582.63,0.31520095]
[1744584701126,0.58638391,583.11,582.63,0.31520095]
[1744584701427,0.58638391,583.1,582.63,0.31520095]
[1744584701626,0.58638391,583.09,582.63,0.31520095]
[1744584701832,0.58638391,583.08,582.64,0.561]
[1744584702033,0.58638391,583.07,582.65,0.31520095]
[1744584702234,0.216,583.23,582.65,0.31520095]
[1744584702434,0.58616433,583.22,582.65,0.31520095]
[1744584702735,0.58616433,583.21,582.65,0.31520095]
[1744584702934,0.58616433,583.2,582.65,0.31520095]
[1744584703233,0.58616433,583.19,582.65,0.31520095]
[1744584703434,0.58616433,583.18,582.65,0.31520095]
[1744584703733,0.58616433,583.17,582.66,0.31519938]
[1744584704034,0.58616433,583.16,582.67,0.31519938]
[1744584704231,0.58616433,583.16,582.64,0.561]
[1744584704232,0.58616433,583.15,582.65,0.31519938]
[1744584704429,0.58616433,583.14,582.66,0.31519938]
[1744584704634,0.58616433,583.13,582.65,0.31519938]
[1744584704934,0.58616433,583.12,582.66,0.31519938]
[1744584705129,0.58616433,583.11,582.65,0.31519938]
[1744584705328,0.58616433,583.1,582.66,0.31520364]
[1744584705534,0.58616433,583.09,582.65,0.31520364]
[1744584705834,0.58616433,583.08,582.66,0.31520364]
[1744584706036,0.58616433,583.07,582.67,0.31520364]
[1744584706234,0.58616433,583.06,582.68,0.31520364]
[1744584706427,0.58616433,583.05,582.64,0.561]
[1744584706631,0.58616433,583.04,582.64,0.561]
[1744584706935,0.58616433,583.03,582.64,0.561]
[1744584707136,0.58616433,583.02,582.64,0.561]
[1744584707336,0.58616433,583.01,582.64,0.561]
[1744584707537,0.58616433,583.0,582.64,0.561]
[1744584707735,0.58616433,582.99,582.64,0.561]
[1744584707935,0.216,583.23,582.64,0.561]
[1744584708134,0.5864728,583.22,582.64,0.561]
[1744584708335,0.5864728,583.21,582.64,0.561]
[1744584708535,0.5864728,583.2,582.64,0.561]
[1744584708731,0.5864728,583.19,582.64,0.561]
[1744584708940,0.5864728,583.18,582.64,0.561]
[1744584709236,0.5864728,583.17,582.64,0.561]
[1744584709434,0.5864728,583.16,582.64,0.561]
[1744584709732,0.5864728,583.15,582.64,0.561]
[1744584709936,0.5864728,583.14,582.64,0.561]
[1744584710141,0.5864728,583.13,582.64,0.561]
[1744584710333,0.5864728,583.12,582.64,0.561]
[1744584710532,0.5864728,583.11,582.64,0.561]
[1744584710732,0.5864728,583.1,582.65,0.599]
[1744584710935,0.5864728,583.09,582.65,0.599]
[1744584711132,0.5864728,583.08,582.65,0.599]
[1744584711336,0.5864728,583.07,582.65,0.599]
[1744584711532,0.5864728,583.06,582.65,0.599]
[1744584711736,0.5864728,583.05,582.65,0.599]
[1744584711934,0.5864728,583.04,582.65,0.599]
[1744584712135,0.5864728,583.03,582.65,0.599]
[1744584712331,0.5864728,583.02,582.65,0.599]
[1744584712536,0.5864728,583.01,582.65,0.599]
[1744584712737,0.5864728,583.0,582.65,0.599]
[1744584712933,0.5864728,582.99,582.65,0.599]
[1744584713137,0.5864728,582.98,582.65,0.599]
[1744584713334,0.5864728,582.97,582.65,0.599]
[1744584713535,0.5864728,582.96,582.65,0.599]
[1744584713736,0.5864728,582.95,582.65,0.599]
[1744584713935,0.5864728,582.94,582.65,0.599]
[1744584714140,0.34272397,583.56,582.65,0.599]
[1744584714439,0.58661793,583.55,582.65,0.599]
[1744584714635,0.58661793,583.54,582.65,0.599]
[1744584714838,0.58661793,583.53,582.65,0.599]
[1744584715036,0.58661793,583.52,582.65,0.599]
[1744584715236,0.58661793,583.51,582.65,0.599]
[1744584715541,0.80261793,583.5,582.65,0.599]
[1744584715741,0.58661793,583.49,582.65,0.599]
[1744584716036,0.58661793,583.48,582.65,0.599]
[1744584716241,0.58661793,583.47,582.65,0.599]
[1744584716437,0.58661793,583.46,582.65,0.599]
[1744584716642,0.58661793,583.45,582.65,0.599]
[1744584716835,0.58661793,583.44,582.65,0.599]
[1744584717038,0.58661793,583.43,582.65,0.599]
[1744584717240,0.58661793,583.42,582.65,0.599]
[1744584717438,0.58661793,583.41,582.65,0.599]
[1744584717646,0.58661793,583.4,582.65,0.599]
[1744584717844,0.58661793,583.39,582.65,0.599]
[1744584718046,0.58661793,583.38,582.65,0.599]
[1744584718245,0.58661793,583.37,582.65,0.599]
[1744584718446,0.58661793,583.36,582.65,0.599]
[1744584718647,0.58661793,583.35,582.65,0.599]
[1744584718847,0.58661793,583.34,582.65,0.599]
[1744584719051,0.58661793,583.33,582.65,1.269]
[1744584719249,0.58661793,583.32,582.65,1.269]